Workbook

Sheet Welcome
A1: ©2011 Eksioglu, Seref, Ahuja, and Winston

Sheet HistData (hidden)
B10: Period | C10: Demand
B11: 1 | C11: 23
B12: 2 | C12: 24
B13: 3 | C13: 34
B14: 4 | C14: 45
B15: 5 | C15: 67
B16: 6 | C16: 89
B17: 7 | C17: 97
B18: 8 | C18: 99
B19: 9 | C19: 70
B20: 10 | C20: 60

Sheet DemoData (hidden)
B6: Period | C6: Sales | E6: Period | F6: Sales | H6: Period | I6: Sales
B7: 1 | C7: 1646 | E7: 1 | F7: 12639 | H7: 1 | I7: 80
B8: 2 | C8: 1738 | E8: 2 | F8: 11023 | H8: 2 | I8: 130
B9: 3 | C9: 1883 | E9: 3 | F9: 12961 | H9: 3 | I9: 230
B10: 4 | C10: 4868 | E10: 4 | F10: 12067 | H10: 4 | I10: 340
B11: 5 | C11: 1924 | E11: 5 | F11: 12910 | H11: 5 | I11: 100
B12: 6 | C12: 1989 | E12: 6 | F12: 14301 | H12: 6 | I12: 180
B13: 7 | C13: 2142 | E13: 7 | F13: 14665 | H13: 7 | I13: 230
B14: 8 | C14: 4383 | E14: 8 | F14: 15450 | H14: 8 | I14: 380
B15: 9 | C15: 2043 | E15: 9 | F15: 12519 | H15: 9 | I15: 120
B16: 10 | C16: 2020 | E16: 10 | F16: 12254 | H16: 10 | I16: 130
B17: 11 | C17: 2171 | E17: 11 | F17: 11674 | H17: 11 | I17: 320
B18: 12 | C18: 4338 | E18: 12 | F18: 13136 | H18: 12 | I18: 410
B19: 13 | C19: 2186 | E19: 13 | F19: 12495 | H19: 13 | I19: 78.08552119
B20: 14 | C20: 2204 | E20: 14 | F20: 11052 | H20: 14 | I20: 138.8451393
B21: 15 | C21: 2465 | E21: 15 | F21: 12661 | H21: 15 | I21: 238.6674119
B22: 16 | C22: 5027 | E22: 16 | F22: 13867 | H22: 16 | I22: 336.0691583
B23: 17 | C23: 2319 | E23: 17 | F23: 13063 | H23: 17 | I23: 96.47791188
B24: 18 | C24: 1994 | E24: 18 | F24: 13961 | H24: 18 | I24: 187.1035072
B25: 19 | C25: 2220 | E25: 19 | F25: 14944 | H25: 19 | I25: 230.3447912
B26: 20 | C26: 4200 | E26: 20 | F26: 15542 | H26: 20 | I26: 387.5458388
B27: 21 | C27: 2061 | E27: 21 | F27: 12790 | H27: 21 | I27: 102.2776939
B28: 22 | C28: 2021 | E28: 22 | F28: 13248 | H28: 22 | I28: 119.9889978
B29: 23 | C29: 4074 | E29: 23 | F29: 12457 | H29: 23 | I29: 326.7926411
B30: 24 | C30: 2644 | E30: 24 | F30: 14044 | H30: 24 | I30: 419.8719108
B31: 25 | C31: 2874 | E31: 25 | F31: 13551 | H31: 25 | I31: 75.24401643
B32: 26 | C32: 3714 | E32: 26 | F32: 12341 | H32: 26 | I32: 113.423875
B33: 27 | C33: 4292 | E33: 27 | F33: 14491 | H33: 27 | I33: 215.6768003
B34: 28 | C34: 2953 | E34: 28 | F34: 14641 | H34: 28 | I34: 351.614831
B35: 29 | C35: 3605 | E35: 29 | F35: 14510 | H35: 29 | I35: 123.8509761
B36: 30 | C36: 3093 | E36: 30 | F36: 15896 | H36: 30 | I36: 167.5781404
B37: 31 | C37: 2987 | E37: 31 | F37: 16366 | H37: 31 | I37: 223.1562006
B38: 32 | C38: 4292 | E38: 32 | F38: 17660 | H38: 32 | I38: 378.1260358
B39: 33 | C39: 2905 | E39: 33 | F39: 14415 | H39: 33 | I39: 111.2840423
B40: 34 | C40: 3995 | E40: 34 | F40: 14992 | H40: 34 | I40: 120.4840225
B41: 35 | C41: 3653 | E41: 35 | F41: 14450 | H41: 35 | I41: 321.8810057
B42: 36 | C42: 4256 | E42: 36 | F42: 15499 | H42: 36 | I42: 416.3858002
B43: 37 | C43: 2351 | E43: 37 | F43: 14817
B44: 38 | C44: 2327 | E44: 38 | F44: 13573
B45: 39 | C45: 3115 | E45: 39 | F45: 15839
B46: 40 | C46: 3257 | E46: 40 | F46: 16069
B47: 41 | C47: 4080 | E47: 41 | F47: 15804
B48: 42 | C48: 2552 | E48: 42 | F48: 17082
B49: 43 | C49: 2329 | E49: 43 | F49: 17600
B50: 44 | C50: 3744 | E50: 44 | F50: 18941
B51: 45 | C51: 4256 | E51: 45 | F51: 15099
B52: 46 | C52: 3111 | E52: 46 | F52: 15624
B53: 47 | C53: 2703 | E53: 47 | F53: 15187
B54: 48 | C54: 2446 | E54: 48 | F54: 15582
E55: 49 | F55: 15334
E56: 50 | F56: 14394
E57: 51 | F57: 17190
E58: 52 | F58: 17039
E59: 53 | F59: 16631
E60: 54 | F60: 17683
E61: 55 | F61: 17726
E62: 56 | F62: 19059
E63: 57 | F63: 14981
E64: 58 | F64: 15613
E65: 59 | F65: 14055
E66: 60 | F66: 15735
E67: 61 | F67: 14773
E68: 62 | F68: 13394
E69: 63 | F69: 16199
E70: 64 | F70: 15152
E71: 65 | F71: 15745
E72: 66 | F72: 17352
E73: 67 | F73: 17996
E74: 68 | F74: 19332
E75: 69 | F75: 15188
E76: 70 | F76: 16349
E77: 71 | F77: 15154
E78: 72 | F78: 16256
E79: 73 | F79: 16025
E80: 74 | F80: 15418
E81: 75 | F81: 17297
E82: 76 | F82: 17721
E83: 77 | F83: 17414
E84: 78 | F84: 18600
E85: 79 | F85: 19663
E86: 80 | F86: 20241
E87: 81 | F87: 16631
E88: 82 | F88: 17231
E89: 83 | F89: 16087
E90: 84 | F90: 17896
E91: 85 | F91: 17306
E92: 86 | F92: 15691
E93: 87 | F93: 18784
E94: 88 | F94: 18524
E95: 89 | F95: 18325
E96: 90 | F96: 19627
E97: 91 | F97: 21054
E98: 92 | F98: 21849
E99: 93 | F99: 18221
E100: 94 | F100: 19120
E101: 95 | F101: 18225
E102: 96 | F102: 19753
E103: 97 | F103: 18741
E104: 98 | F104: 17289
E105: 99 | F105: 21904
E106: 100 | F106: 20660
E107: 101 | F107: 21131
E108: 102 | F108: 23073
E109: 103 | F109: 24207
E110: 104 | F110: 25754
E111: 105 | F111: 21163
E112: 106 | F112: 21600
E113: 107 | F113: 20993
E114: 108 | F114: 21841
E115: 109 | F115: 21721
E116: 110 | F116: 20814
E117: 111 | F117: 25927
E118: 112 | F118: 23717
E119: 113 | F119: 23562
E120: 114 | F120: 26372
E121: 115 | F121: 27980
E122: 116 | F122: 29915
E123: 117 | F123: 23394
E124: 118 | F124: 24107
E125: 119 | F125: 23391
E126: 120 | F126: 23259
E127: 121 | F127: 22428
E128: 122 | F128: 21703
E129: 123 | F129: 25388
E130: 124 | F130: 23703
E131: 125 | F131: 23093
E132: 126 | F132: 25038
E133: 127 | F133: 25603
E134: 128 | F134: 26661
E135: 129 | F135: 21058
E136: 130 | F136: 22375
E137: 131 | F137: 20290
E138: 132 | F138: 22364
E139: 133 | F139: 20869
E140: 134 | F140: 19112
E141: 135 | F141: 22549
E142: 136 | F142: 22680
E143: 137 | F143: 23600
E144: 138 | F144: 23884
E145: 139 | F145: 25178
E146: 140 | F146: 23946
E147: 141 | F147: 20732
E148: 142 | F148: 22053
E149: 143 | F149: 20693
E150: 144 | F150: 22117
E151: 145 | F151: 20919
E152: 146 | F152: 19755
E153: 147 | F153: 23919
E154: 148 | F154: 23593
E155: 149 | F155: 23542
E156: 150 | F156: 25248
E157: 151 | F157: 25814
E158: 152 | F158: 26492
E159: 153 | F159: 21606
E160: 154 | F160: 23173
E161: 155 | F161: 22173
E162: 156 | F162: 23727
E163: 157 | F163: 23114
E164: 158 | F164: 22283
E165: 159 | F165: 28320
E166: 160 | F166: 25113
E167: 161 | F167: 25549
E168: 162 | F168: 27446
E169: 163 | F169: 27345
E170: 164 | F170: 27927
E171: 165 | F171: 23642
E172: 166 | F172: 25229
E173: 167 | F173: 23917
E174: 168 | F174: 24849
E175: 169 | F175: 23408
E176: 170 | F176: 22667
E177: 171 | F177: 27563
E178: 172 | F178: 26690
E179: 173 | F179: 27490
E180: 174 | F180: 28894
E181: 175 | F181: 28709
E182: 176 | F182: 30791
E183: 177 | F183: 25634
E184: 178 | F184: 27302
E185: 179 | F185: 26169
E186: 180 | F186: 26573
E187: 181 | F187: 25619
E188: 182 | F188: 24195
E189: 183 | F189: 31520
E190: 184 | F190: 30120
E191: 185 | F191: 31143
E192: 186 | F192: 31652
E193: 187 | F193: 32834
E194: 188 | F194: 33760
E195: 189 | F195: 26593
E196: 190 | F196: 28849
E197: 191 | F197: 26852
E198: 192 | F198: 30403
E199: 193 | F199: 28168
E200: 194 | F200: 27087
E201: 195 | F201: 34032
E202: 196 | F202: 31810
E203: 197 | F203: 33292
E204: 198 | F204: 34389
E205: 199 | F205: 36311
... 213 more rows

Sheet Method (hidden)
B12: Method | E12: Parameters
B23: Mean Square Errors
B24: Moving Averages | C24: 1106.0625
B25: Exponential Smoothing | C25: 773.292797
B26: Holt's Method with Trends | C26: 399.3735782
B27: Winter's Method with Seasonality | C27: 529.2925646

Sheet Parameters (hidden)
N6: For Holt's and Winter's Methods
M7: (Winter's) | N7: Base | O7: Trend | P7: Seasonal SF | Q7: Est S-Bar
B8: MOVING AVERAGE | E8: Min MSE | I8: Period | J8: Historical Demand | K8: Forecast | L8: Square Error | M8: DeSeas | N8: 22.2 | O8: 7.018181818
B9: Number of Historical Periods to Average | C9: 4 | E9: 1106.0625 | I9: 1 | J9: 23 | K9: =(N8 + O8) -> 29.21818182 | L9: =(J9-K9)^2 -> 38.66578512 | M9: 20.78809524 | N9: =HAlpha * J9 + (1 - HAlpha) * (N8 + O8) -> 28.59636364 | O9: =HBeta*(N9-N8)+(1-HBeta)*O8 -> 6.893818182 | P9: 1.135242339 | Q9: 1.106402474
B10: Tinit | C10: =1+C9 -> 5 | I10: 2 | J10: 24 | K10: =(N9 + O9) -> 35.49018182 | L10: =(J10-K10)^2 -> 132.0242782 | M10: 31.31666667 | N10: =HAlpha * J10 + (1 - HAlpha) * (N9 + O9) -> 34.34116364 | O10: =HBeta*(N10-N9)+(1-HBeta)*O9 -> 6.664014545 | P10: 0.999066071 | Q10: 0.7663650878
B11: Tfin | C11: 10 | I11: 3 | J11: 34 | K11: =(N10 + O10) -> 41.00517818 | L11: 49.07252136 | M11: 41.8452381 | N11: =HAlpha * J11 + (1 - HAlpha) * (N10 + O10) -> 40.30466036 | O11: =HBeta*(N11-N10)+(1-HBeta)*O10 -> 6.523910982 | P11: 0.7871345547 | Q11: 0.8125177809
I12: 4 | J12: 45 | K12: =(N11 + O11) -> 46.82857135 | L12: 3.343673165 | M12: 52.37380952 | N12: =HAlpha * J12 + (1 - HAlpha) * (N11 + O11) -> 46.64571421 | O12: =HBeta*(N12-N11)+(1-HBeta)*O11 -> 6.487339555 | P12: 0.7627836453 | Q12: 0.8592080738
B13: EXPONENTIAL SMOOTHING | E13: Min MSE | I13: 5 | J13: 67 | K13: =(N12 + O12) -> 53.13305377 | L13: 192.2921979 | M13: 62.90238095 | N13: =HAlpha * J13 + (1 - HAlpha) * (N12 + O12) -> 54.51974839 | O13: =HBeta*(N13-N12)+(1-HBeta)*O12 -> 6.76467848 | P13: =WGamma * ($J$9/ $N$9) + (1 - WGamma) * $P$9 -> 1.102147912 | Q13: 1.065142511
B14: Smoothing Constant | C14: 0.1 | E14: =AVERAGE($L$9:$L$18) -> 399.3735782 | I14: 6 | J14: 89 | K14: =(N13 + O13) -> 61.28442687 | L14: 768.152994 | M14: 73.43095238 | N14: =HAlpha * J14 + (1 - HAlpha) * (N13 + O13) -> 64.05598418 | O14: =HBeta*(N14-N13)+(1-HBeta)*O13 -> 7.318989942 | P14: =WGamma * ($J$10/ $N$10) + (1 - WGamma) * $P$10 -> 0.9690464376 | Q14: 1.212022956
B15: Tinit | C15: 2 | I15: 7 | J15: 97 | K15: =(N14 + O14) -> 71.37497412 | L15: 656.6419511 | M15: 83.95952381 | N15: =HAlpha * J15 + (1 - HAlpha) * (N14 + O14) -> 73.93747671 | O15: =HBeta*(N15-N14)+(1-HBeta)*O14 -> 7.83149046 | P15: =WGamma * ($J$11/ $N$11) + (1 - WGamma) * $P$11 -> 0.7927785897 | Q15: 1.155318606
B16: Tfin | C16: 10 | I16: 8 | J16: 99 | K16: =(N15 + O15) -> 81.76896717 | L16: 296.9084923 | M16: 94.48809524 | N16: =HAlpha * J16 + (1 - HAlpha) * (N15 + O15) -> 83.49207045 | O16: =HBeta*(N16-N15)+(1-HBeta)*O15 -> 8.176111116 | P16: =WGamma * ($J$12/ $N$12) + (1 - WGamma) * $P$12 -> 0.7829771663 | Q16: 1.047751039
I17: 9 | J17: 70 | K17: =(N16 + O16) -> 91.66818157 | L17: 469.5100926 | M17: 105.0166667 | N17: =HAlpha * J17 + (1 - HAlpha) * (N16 + O16) -> 89.50136341 | O17: =HBeta*(N17-N16)+(1-HBeta)*O16 -> 7.742747485 | P17: =WGamma * ($J$13/ $N$13) + (1 - WGamma) * $P$13 -> 1.11482437 | Q17: 0.6665608634
B18: HOLT'S METHOD FOR TRENDS | I18: 10 | J18: 60 | K18: =(N17 + O17) -> 97.2441109 | L18: 1387.123797 | M18: 115.5452381 | N18: =HAlpha * J18 + (1 - HAlpha) * (N17 + O17) -> 93.51969981 | O18: =HBeta*(N18-N17)+(1-HBeta)*O17 -> 6.997865267 | P18: =WGamma * ($J$14/ $N$14) + (1 - WGamma) * $P$14 -> 1.011082755 | Q18: 0.5192771333
B19: Base Smoothing Constant | C19: 0.1 | E19: Min MSE | L19: 0 | P19: =WGamma * ($J$15/ $N$15) + (1 - WGamma) * $P$15 -> 0.8446926571
B20: Trend Smoothing Constant | C20: 0.2 | E20: =AVERAGE($L$9:$L$18) -> 399.3735782 | L20: 0 | P20: =WGamma * ($J$16/ $N$16) + (1 - WGamma) * $P$16 -> 0.8232535842
B21: Tinit | C21: 1 | L21: 0 | P21: =WGamma * ($J$17/ $N$17) + (1 - WGamma) * $P$17 -> 1.081553032
B22: Tfin | C22: 10 | L22: 0 | P22: =WGamma * ($J$18/ $N$18) + (1 - WGamma) * $P$18 -> 0.9741320848
B23: Starting Base | C23: 7.018181818 | L23: 0
B24: Starting Trend | C24: 17 | L24: 0
L25: 0
B26: WINTER'S METHOD FOR SEASONALITY | E26: Min MSE | L26: 0
B27: Base Smoothing Constant | C27: 0.05 | E27: =AVERAGE($L$9:$L$17) -> 289.623554 | L27: 0
B28: Trend Smoothing Contant | C28: 0.1 | L28: 0
B29: Seasonal Smoothing Constant | C29: 0.1 | L29: 0
B30: Tinit | C30: 1 | L30: 0
B31: Tfin | C31: 10 | L31: 0
B32: Periods per Season | C32: 4 | L32: 0
B33: Starting Base | C33: 10.52857143 | L33: 0
B34: Starting Trend | C34: 10.25952381 | L34: 0
L35: 0
L36: 0
L37: 0
L38: 0
L39: 0
L40: 0
L41: 0
L42: 0
L43: 0
L44: 0
L45: 0
L46: 0
L47: 0
L48: 0
L49: 0
L50: 0
L51: 0
L52: 0
L53: 0
L54: 0
L55: 0
L56: 0
L57: 0
L58: 0
L59: 0
L60: 0
L61: 0
L62: 0
L63: 0
L64: 0
L65: 0
L66: 0
L67: 0
L68: 0
L69: 0
L70: 0
L71: 0
L72: 0
L73: 0
L74: =(J74-K74)^2 -> 0
L75: =(J75-K75)^2 -> 0
L76: =(J76-K76)^2 -> 0
L77: =(J77-K77)^2 -> 0
L78: =(J78-K78)^2 -> 0

Sheet BestMethod (hidden)
B9: Method | C9: Holt's Method with Trends
B11: MSE | C11: 399.3735782
B13: Parameters
B14: Base Smoothing Constant | C14: 0.1
B15: Trend Smoothing Constant | C15: 0.2
B16: Tinit | C16: 1
B17: Tfin | C17: 10
B18: Starting Base | C18: 7.018181818
B19: Starting Trend | C19: 17
B20: Starting Base | C20: 0.06095783877
B21: Starting Trend | C21: 218.4401254
